[Event "December 5 Early 2023"]
[Site "https://www.chess.com"]
[Date "2023.12.05"]
[Round "5"]
[White "Popov, Konstantin"]
[Black "Martinez Alcantara, Jose Eduardo"]
[Result "1/2-1/2"]
[Board "13"]
[TimeControl "180+1"]
[WhiteFideId "34137910"]
[BlackFideId "3805662"]
[WhiteElo "2871"]
[BlackElo "2988"]
[WhiteTeam "FID"]
[BlackTeam "PER"]
[WhiteClock "0:00:06"]
[BlackClock "0:00:04"]

1. e4 {[%clk 0:03:00]}  c5 {[%clk 0:03:00]} 2. Nf3 {[%clk 0:03:01]}  d6 {[%clk 0:03:01]} 3. d4 {[%clk 0:03:00]}  cxd4 {[%clk 0:03:02]} 4. Nxd4 {[%clk 0:03:01]}  a6 {[%clk 0:03:02]} 5. c4 {[%clk 0:03:01]}  e6 {[%clk 0:03:03]} 6. Nc3 {[%clk 0:03:00]}  Nf6 {[%clk 0:03:03]} 7. Be3 {[%clk 0:03:00]}  b6 {[%clk 0:03:04]} 8. Rc1 {[%clk 0:02:59]}  Bb7 {[%clk 0:03:04]} 9. f3 {[%clk 0:02:59]}  Be7 {[%clk 0:03:04]} 10. g4 {[%clk 0:02:55]}  Nfd7 {[%clk 0:03:03]} 11. Qd2 {[%clk 0:02:52]}  Nc6 {[%clk 0:03:02]} 12. g5 {[%clk 0:02:49]}  Nxd4 {[%clk 0:02:45]} 13. Qxd4 {[%clk 0:02:48]}  Ne5 {[%clk 0:02:45]} 14. Be2 {[%clk 0:02:43]}  Bxg5 {[%clk 0:02:37]} 15. f4 {[%clk 0:02:40]}  Nc6 {[%clk 0:02:26]} 16. Qxg7 {[%clk 0:02:34]}  Bh4+ {[%clk 0:02:26]} 17. Kd2 {[%clk 0:02:27]}  Bf6 {[%clk 0:02:26]} 18. Qh6 {[%clk 0:02:26]}  Nd4 {[%clk 0:02:10]} 19. Bd3 {[%clk 0:02:08]}  Qe7 {[%clk 0:01:57]} 20. Na4 {[%clk 0:01:54]}  Rg8 {[%clk 0:01:46]} 21. Qh3 {[%clk 0:01:24]}  Bc6 {[%clk 0:01:36]} 22. Nxb6 {[%clk 0:01:21]}  Rb8 {[%clk 0:01:36]} 23. c5 {[%clk 0:01:21]}  dxc5 {[%clk 0:01:36]} 24. Nc4 {[%clk 0:01:21]}  e5 {[%clk 0:01:20]} 25. Rhg1 {[%clk 0:01:18]}  Rh8 {[%clk 0:01:00]} 26. b3 {[%clk 0:01:09]}  Rd8 {[%clk 0:00:52]} 27. Rce1 {[%clk 0:00:50]}  Bb5 {[%clk 0:00:49]} 28. fxe5 {[%clk 0:00:36]}  Bxe5 {[%clk 0:00:48]} 29. Bg5 {[%clk 0:00:30]}  Bf6 {[%clk 0:00:44]} 30. Bxf6 {[%clk 0:00:27]}  Qxf6 {[%clk 0:00:45]} 31. Ref1 {[%clk 0:00:28]}  Qe6 {[%clk 0:00:34]} 32. Qxe6+ {[%clk 0:00:22]}  Nxe6 {[%clk 0:00:35]} 33. Kc3 {[%clk 0:00:21]}  Ke7 {[%clk 0:00:36]} 34. a4 {[%clk 0:00:21]}  Be8 {[%clk 0:00:27]} 35. e5 {[%clk 0:00:19]}  Rd4 {[%clk 0:00:20]} 36. Nd6 {[%clk 0:00:19]}  a5 {[%clk 0:00:21]} 37. Nf5+ {[%clk 0:00:19]}  Kd8 {[%clk 0:00:21]} 38. Nxd4 {[%clk 0:00:20]}  cxd4+ {[%clk 0:00:22]} 39. Kd2 {[%clk 0:00:20]}  Ke7 {[%clk 0:00:22]} 40. Rc1 {[%clk 0:00:16]}  h5 {[%clk 0:00:22]} 41. Rc4 {[%clk 0:00:15]}  h4 {[%clk 0:00:23]} 42. b4 {[%clk 0:00:15]}  axb4 {[%clk 0:00:23]} 43. Rxb4 {[%clk 0:00:16]}  Rh5 {[%clk 0:00:24]} 44. Re1 {[%clk 0:00:14]}  Rg5 {[%clk 0:00:24]} 45. a5 {[%clk 0:00:14]}  Bc6 {[%clk 0:00:23]} 46. a6 {[%clk 0:00:14]}  Bf3 {[%clk 0:00:23]} 47. Bf1 {[%clk 0:00:10]}  Rg1 {[%clk 0:00:21]} 48. a7 {[%clk 0:00:09]}  Rh1 {[%clk 0:00:21]} 49. Be2 {[%clk 0:00:02]}  Rxh2 {[%clk 0:00:22]} 50. Kd1 {[%clk 0:00:03]}  Rxe2 {[%clk 0:00:19]} 51. Rxe2 {[%clk 0:00:03]}  d3 {[%clk 0:00:20]} 52. Kd2 {[%clk 0:00:02]}  dxe2 {[%clk 0:00:20]} 53. Rb8 {[%clk 0:00:02]}  Nc7 {[%clk 0:00:13]} 54. Rh8 {[%clk 0:00:03]}  Ke6 {[%clk 0:00:05]} 55. Rc8 {[%clk 0:00:02]}  h3 {[%clk 0:00:02]} 56. Rh8 {[%clk 0:00:02]}  Bg2 {[%clk 0:00:02]} 57. Kxe2 {[%clk 0:00:01]}  Kxe5 {[%clk 0:00:03]} 58. Kf2 {[%clk 0:00:01]}  Kd6 {[%clk 0:00:03]} 59. Kg3 {[%clk 0:00:02]}  f6 {[%clk 0:00:04]} 60. Rf8 {[%clk 0:00:02]}  Ke5 {[%clk 0:00:04]} 61. Rc8 {[%clk 0:00:03]}  Na8 {[%clk 0:00:04]} 62. Rb8 {[%clk 0:00:02]}  f5 {[%clk 0:00:04]} 63. Kf2 {[%clk 0:00:03]}  f4 {[%clk 0:00:05]} 64. Re8+ {[%clk 0:00:03]}  Kf5 {[%clk 0:00:05]} 65. Rf8+ {[%clk 0:00:03]}  Ke5 {[%clk 0:00:05]} 66. Re8+ {[%clk 0:00:04]}  Kd4 {[%clk 0:00:06]} 67. Rf8 {[%clk 0:00:04]}  Kc5 {[%clk 0:00:05]} 68. Rxf4 {[%clk 0:00:04]}  Kb6 {[%clk 0:00:06]} 69. Rg4 {[%clk 0:00:04]}  Bb7 {[%clk 0:00:03]} 70. Rh4 {[%clk 0:00:04]}  Bc8 {[%clk 0:00:04]} 71. Kg3 {[%clk 0:00:04]}  Kxa7 {[%clk 0:00:03]} 72. Rxh3 {[%clk 0:00:05]}  Bb7 {[%clk 0:00:02]} 73. Rh7 {[%clk 0:00:05]}  Nb6 {[%clk 0:00:03]} 74. Rxb7+ {[%clk 0:00:06]}  Kxb7 {[%clk 0:00:04]} 1/2-1/2

[Event "December 5 Early 2023"]
[Site "https://www.chess.com"]
[Date "2023.12.05"]
[Round "5"]
[White "Nguyen, Ngoc Truong Son"]
[Black "Nguyen, Quoc Hy"]
[Result "1-0"]
[Board "16"]
[TimeControl "180+1"]
[WhiteFideId "12401110"]
[BlackFideId "12410853"]
[WhiteElo "2937"]
[BlackElo "2818"]
[WhiteTeam "VIE"]
[BlackTeam "VIE"]
[WhiteClock "0:00:13"]
[BlackClock "0:00:18"]

1. e4 {[%clk 0:02:57]}  c5 {[%clk 0:02:59]} 2. Nf3 {[%clk 0:02:57]}  Nc6 {[%clk 0:02:59]} 3. Bb5 {[%clk 0:02:56]}  g6 {[%clk 0:02:58]} 4. Bxc6 {[%clk 0:02:56]}  dxc6 {[%clk 0:02:59]} 5. d3 {[%clk 0:02:54]}  Bg7 {[%clk 0:02:59]} 6. Nc3 {[%clk 0:02:54]}  Nf6 {[%clk 0:02:53]} 7. h3 {[%clk 0:02:53]}  Nd7 {[%clk 0:02:50]} 8. Be3 {[%clk 0:02:52]}  e5 {[%clk 0:02:47]} 9. Qd2 {[%clk 0:02:47]}  h6 {[%clk 0:02:42]} 10. O-O {[%clk 0:02:46]}  Qe7 {[%clk 0:02:37]} 11. a3 {[%clk 0:02:44]}  Nf8 {[%clk 0:02:33]} 12. b4 {[%clk 0:02:43]}  c4 {[%clk 0:02:22]} 13. d4 {[%clk 0:02:42]}  exd4 {[%clk 0:01:48]} 14. Bxd4 {[%clk 0:02:43]}  f6 {[%clk 0:01:49]} 15. Bc5 {[%clk 0:02:42]}  Qf7 {[%clk 0:01:47]} 16. e5 {[%clk 0:02:38]}  f5 {[%clk 0:01:42]} 17. e6 {[%clk 0:02:28]}  Nxe6 {[%clk 0:01:20]} 18. Rad1 {[%clk 0:02:26]}  Bd7 {[%clk 0:01:13]} 19. Rfe1 {[%clk 0:02:10]}  g5 {[%clk 0:01:06]} 20. Ne5 {[%clk 0:01:29]}  Bxe5 {[%clk 0:01:06]} 21. Rxe5 {[%clk 0:01:30]}  b6 {[%clk 0:01:02]} 22. Qd6 {[%clk 0:00:30]}  bxc5 {[%clk 0:00:55]} 23. Rde1 {[%clk 0:00:29]}  O-O-O {[%clk 0:00:40]} 24. Rxe6 {[%clk 0:00:24]}  Bxe6 {[%clk 0:00:40]} 25. Qxc6+ {[%clk 0:00:25]}  Kb8 {[%clk 0:00:36]} 26. Rxe6 {[%clk 0:00:25]}  Qc7 {[%clk 0:00:31]} 27. Qb5+ {[%clk 0:00:17]}  Qb7 {[%clk 0:00:24]} 28. Qxc5 {[%clk 0:00:17]}  Rc8 {[%clk 0:00:22]} 29. Qxf5 {[%clk 0:00:13]}  Rhe8 {[%clk 0:00:19]} 30. Qe5+ {[%clk 0:00:13]}  Qc7 {[%clk 0:00:18]} 31. Rxe8 {[%clk 0:00:13]} 1-0

[Event "December 5 Early 2023"]
[Site "https://www.chess.com"]
[Date "2023.12.05"]
[Round "5"]
[White "Dyachuk, Artem"]
[Black "Demchenko, Anton"]
[Result "0-1"]
[Board "18"]
[TimeControl "180+1"]
[WhiteFideId "34107924"]
[BlackFideId "4160258"]
[WhiteElo "2592"]
[BlackElo "2912"]
[WhiteTeam "UKR"]
[BlackTeam "SLO"]
[WhiteClock "0:00:08"]
[BlackClock "0:00:10"]

1. e4 {[%clk 0:03:00]}  e5 {[%clk 0:02:59]} 2. Nf3 {[%clk 0:03:00]}  Nc6 {[%clk 0:03:00]} 3. Bb5 {[%clk 0:03:01]}  a6 {[%clk 0:03:00]} 4. Ba4 {[%clk 0:03:01]}  Nge7 {[%clk 0:03:00]} 5. c3 {[%clk 0:02:57]}  Ng6 {[%clk 0:03:00]} 6. d4 {[%clk 0:02:54]}  exd4 {[%clk 0:03:01]} 7. cxd4 {[%clk 0:02:55]}  Bb4+ {[%clk 0:03:01]} 8. Bd2 {[%clk 0:02:53]}  O-O {[%clk 0:03:01]} 9. O-O {[%clk 0:02:53]}  Bxd2 {[%clk 0:03:00]} 10. Qxd2 {[%clk 0:02:53]}  d5 {[%clk 0:03:00]} 11. exd5 {[%clk 0:02:44]}  Nce7 {[%clk 0:02:59]} 12. Nc3 {[%clk 0:02:23]}  Nxd5 {[%clk 0:03:00]} 13. Bb3 {[%clk 0:02:22]}  Ndf4 {[%clk 0:02:54]} 14. Rfe1 {[%clk 0:02:16]}  Bg4 {[%clk 0:02:52]} 15. Ne5 {[%clk 0:02:15]}  Qg5 {[%clk 0:02:47]} 16. Qe3 {[%clk 0:01:48]}  Be6 {[%clk 0:01:31]} 17. Qg3 {[%clk 0:01:30]}  Qxg3 {[%clk 0:01:25]} 18. hxg3 {[%clk 0:01:31]}  Nxe5 {[%clk 0:01:19]} 19. dxe5 {[%clk 0:01:16]}  Nd3 {[%clk 0:01:19]} 20. Re3 {[%clk 0:01:16]}  Rad8 {[%clk 0:01:12]} 21. Ne4 {[%clk 0:00:40]}  Bxb3 {[%clk 0:00:52]} 22. axb3 {[%clk 0:00:41]}  Nxe5 {[%clk 0:00:52]} 23. Nc5 {[%clk 0:00:38]}  Ng4 {[%clk 0:00:52]} 24. Re4 {[%clk 0:00:37]}  f5 {[%clk 0:00:51]} 25. Re7 {[%clk 0:00:26]}  Rf7 {[%clk 0:00:51]} 26. Rxf7 {[%clk 0:00:24]}  Kxf7 {[%clk 0:00:52]} 27. f3 {[%clk 0:00:25]}  Ne3 {[%clk 0:00:34]} 28. Kf2 {[%clk 0:00:24]}  Nc2 {[%clk 0:00:35]} 29. Rf1 {[%clk 0:00:13]}  Rd2+ {[%clk 0:00:24]} 30. Kg1 {[%clk 0:00:13]}  Ne3 {[%clk 0:00:22]} 31. Rf2 {[%clk 0:00:13]}  Rd1+ {[%clk 0:00:22]} 32. Kh2 {[%clk 0:00:13]}  Nf1+ {[%clk 0:00:19]} 33. Kh3 {[%clk 0:00:13]}  Nd2 {[%clk 0:00:20]} 34. Kh2 {[%clk 0:00:14]}  b6 {[%clk 0:00:15]} 35. Nxa6 {[%clk 0:00:14]}  c5 {[%clk 0:00:16]} 36. b4 {[%clk 0:00:12]}  c4 {[%clk 0:00:16]} 37. Re2 {[%clk 0:00:11]}  g5 {[%clk 0:00:13]} 38. Nc7 {[%clk 0:00:07]}  h5 {[%clk 0:00:12]} 39. Nb5 {[%clk 0:00:07]}  Nf1+ {[%clk 0:00:10]} 40. Kh3 {[%clk 0:00:06]}  Kf6 {[%clk 0:00:09]} 41. Nc7 {[%clk 0:00:05]}  Nd2 {[%clk 0:00:05]} 42. Kh2 {[%clk 0:00:05]}  Nf1+ {[%clk 0:00:04]} 43. Kh3 {[%clk 0:00:04]}  Nd2 {[%clk 0:00:04]} 44. Kh2 {[%clk 0:00:05]}  g4 {[%clk 0:00:05]} 45. fxg4 {[%clk 0:00:03]}  hxg4 {[%clk 0:00:05]} 46. Rf2 {[%clk 0:00:04]}  Nf1+ {[%clk 0:00:05]} 47. Kg1 {[%clk 0:00:04]}  Nxg3+ {[%clk 0:00:05]} 48. Kh2 {[%clk 0:00:05]}  Nf1+ {[%clk 0:00:06]} 49. Kg1 {[%clk 0:00:05]}  Ne3+ {[%clk 0:00:06]} 50. Kh2 {[%clk 0:00:05]}  Ke5 {[%clk 0:00:06]} 51. Kg3 {[%clk 0:00:05]}  Rd3 {[%clk 0:00:06]} 52. Kh4 {[%clk 0:00:04]}  Rb3 {[%clk 0:00:05]} 53. Kg5 {[%clk 0:00:04]}  Rxb4 {[%clk 0:00:05]} 54. Re2 {[%clk 0:00:03]}  Rb3 {[%clk 0:00:06]} 55. g3 {[%clk 0:00:03]}  Ke4 {[%clk 0:00:05]} 56. Ne8 {[%clk 0:00:03]}  Kf3 {[%clk 0:00:06]} 57. Rd2 {[%clk 0:00:03]}  Kxg3 {[%clk 0:00:06]} 58. Nf6 {[%clk 0:00:02]}  Kf3 {[%clk 0:00:06]} 59. Nh5 {[%clk 0:00:02]}  g3 {[%clk 0:00:06]} 60. Nf4 {[%clk 0:00:03]}  Ng4 {[%clk 0:00:05]} 61. Nh3 {[%clk 0:00:02]}  g2 {[%clk 0:00:05]} 62. Ng1+ {[%clk 0:00:03]}  Kg3 {[%clk 0:00:05]} 63. Rd1 {[%clk 0:00:02]}  Ne3 {[%clk 0:00:05]} 64. Rc1 {[%clk 0:00:01]}  f4 {[%clk 0:00:06]} 65. Ne2+ {[%clk 0:00:01]}  Kf3 {[%clk 0:00:05]} 66. Nxf4 {[%clk 0:00:01]}  Rxb2 {[%clk 0:00:05]} 67. Rc3 {[%clk 0:00:01]}  g1=Q+ {[%clk 0:00:04]} 68. Kf6 {[%clk 0:00:02]}  Qg4 {[%clk 0:00:05]} 69. Rxc4 {[%clk 0:00:02]}  Qxf4+ {[%clk 0:00:05]} 70. Rxf4+ {[%clk 0:00:02]}  Kxf4 {[%clk 0:00:06]} 71. Ke6 {[%clk 0:00:02]}  Ke4 {[%clk 0:00:06]} 72. Kd7 {[%clk 0:00:03]}  Rc2 {[%clk 0:00:07]} 73. Ke6 {[%clk 0:00:04]}  b5 {[%clk 0:00:07]} 74. Kd7 {[%clk 0:00:05]}  b4 {[%clk 0:00:08]} 75. Ke6 {[%clk 0:00:06]}  b3 {[%clk 0:00:09]} 76. Kd7 {[%clk 0:00:07]}  b2 {[%clk 0:00:10]} 77. Ke7 {[%clk 0:00:07]}  b1=Q {[%clk 0:00:10]} 78. Ke8 {[%clk 0:00:08]} 0-1

[Event "December 5 Early 2023"]
[Site "https://www.chess.com"]
[Date "2023.12.05"]
[Round "5"]
[White "Williams, Simon K"]
[Black "Bortnyk, Olexandr"]
[Result "0-1"]
[Board "19"]
[TimeControl "180+1"]
[WhiteFideId "404454"]
[BlackFideId "14120828"]
[WhiteElo "2709"]
[BlackElo "3069"]
[WhiteTeam "ENG"]
[BlackTeam "UKR"]
[WhiteClock "0:00:08"]
[BlackClock "0:00:37"]

1. e4 {[%clk 0:03:00]}  Nf6 {[%clk 0:03:00]} 2. e5 {[%clk 0:03:00]}  Nd5 {[%clk 0:03:00]} 3. Qf3 {[%clk 0:03:00]}  e6 {[%clk 0:02:59]} 4. Nc3 {[%clk 0:03:00]}  Nb4 {[%clk 0:02:54]} 5. Qd1 {[%clk 0:02:55]}  d6 {[%clk 0:02:43]} 6. Nf3 {[%clk 0:02:35]}  dxe5 {[%clk 0:02:41]} 7. Nxe5 {[%clk 0:02:34]}  Bd6 {[%clk 0:02:33]} 8. Nc4 {[%clk 0:02:33]}  N8c6 {[%clk 0:02:28]} 9. a3 {[%clk 0:02:32]}  Nd5 {[%clk 0:02:27]} 10. Nxd6+ {[%clk 0:02:26]}  Qxd6 {[%clk 0:02:28]} 11. Nxd5 {[%clk 0:02:17]}  Qxd5 {[%clk 0:02:06]} 12. d3 {[%clk 0:01:39]}  e5 {[%clk 0:02:02]} 13. Be3 {[%clk 0:01:34]}  Bf5 {[%clk 0:01:53]} 14. Qf3 {[%clk 0:01:32]}  e4 {[%clk 0:01:51]} 15. Qg3 {[%clk 0:01:20]}  exd3 {[%clk 0:01:48]} 16. Qxg7 {[%clk 0:01:16]}  d2+ {[%clk 0:01:16]} 17. Bxd2 {[%clk 0:01:15]}  O-O-O {[%clk 0:01:17]} 18. Be3 {[%clk 0:00:59]}  Ne5 {[%clk 0:00:45]} 19. Be2 {[%clk 0:00:41]}  Bxc2 {[%clk 0:00:46]} 20. Qf6 {[%clk 0:00:23]}  Qxg2 {[%clk 0:00:42]} 21. Rf1 {[%clk 0:00:20]}  Rhe8 {[%clk 0:00:38]} 22. Rc1 {[%clk 0:00:19]}  Nd3+ {[%clk 0:00:36]} 23. Bxd3 {[%clk 0:00:08]}  Bxd3 {[%clk 0:00:37]} 0-1

[Event "December 5 Early 2023"]
[Site "https://www.chess.com"]
[Date "2023.12.05"]
[Round "5"]
[White "Arabidze, Meri"]
[Black "Pranav, V"]
[Result "0-1"]
[Board "20"]
[TimeControl "180+1"]
[WhiteFideId "13604040"]
[BlackFideId "25060783"]
[WhiteElo "2709"]
[BlackElo "3065"]
[WhiteTeam "GEO"]
[BlackTeam "IND"]
[WhiteClock "0:00:00"]
[BlackClock "0:00:04"]

1. d4 {[%clk 0:03:00]}  Nf6 {[%clk 0:02:59]} 2. c4 {[%clk 0:03:01]}  e6 {[%clk 0:03:00]} 3. Nf3 {[%clk 0:03:01]}  b6 {[%clk 0:03:00]} 4. g3 {[%clk 0:03:01]}  Bb7 {[%clk 0:03:00]} 5. Bg2 {[%clk 0:03:02]}  Be7 {[%clk 0:03:01]} 6. O-O {[%clk 0:03:02]}  O-O {[%clk 0:03:02]} 7. Re1 {[%clk 0:03:03]}  a5 {[%clk 0:03:00]} 8. Nc3 {[%clk 0:03:02]}  Bb4 {[%clk 0:03:00]} 9. Bd2 {[%clk 0:03:02]}  d6 {[%clk 0:02:58]} 10. b3 {[%clk 0:02:55]}  Nbd7 {[%clk 0:02:58]} 11. a3 {[%clk 0:02:54]}  Bxc3 {[%clk 0:02:58]} 12. Bxc3 {[%clk 0:02:55]}  Re8 {[%clk 0:02:51]} 13. b4 {[%clk 0:02:47]}  h6 {[%clk 0:02:35]} 14. Qc2 {[%clk 0:02:35]}  Be4 {[%clk 0:02:30]} 15. Qb2 {[%clk 0:02:34]}  Qc8 {[%clk 0:02:28]} 16. Bh3 {[%clk 0:02:29]}  Rb8 {[%clk 0:02:12]} 17. Nd2 {[%clk 0:02:27]}  Ba8 {[%clk 0:02:13]} 18. e4 {[%clk 0:02:24]}  Qa6 {[%clk 0:02:03]} 19. b5 {[%clk 0:02:18]}  Qc8 {[%clk 0:02:01]} 20. f4 {[%clk 0:01:57]}  Qd8 {[%clk 0:01:43]} 21. e5 {[%clk 0:01:39]}  dxe5 {[%clk 0:01:32]} 22. fxe5 {[%clk 0:01:40]}  Nh7 {[%clk 0:01:33]} 23. Bg2 {[%clk 0:01:35]}  Bxg2 {[%clk 0:01:29]} 24. Kxg2 {[%clk 0:01:36]}  Ndf8 {[%clk 0:01:30]} 25. Rad1 {[%clk 0:01:28]}  Rc8 {[%clk 0:01:26]} 26. h4 {[%clk 0:01:21]}  c6 {[%clk 0:01:20]} 27. Ne4 {[%clk 0:01:21]}  cxb5 {[%clk 0:01:15]} 28. Qxb5 {[%clk 0:01:22]}  Re7 {[%clk 0:01:02]} 29. Nd6 {[%clk 0:01:21]}  Rb8 {[%clk 0:01:02]} 30. Rf1 {[%clk 0:01:14]}  f5 {[%clk 0:00:57]} 31. Rb1 {[%clk 0:01:05]}  Ra7 {[%clk 0:00:50]} 32. c5 {[%clk 0:01:02]}  Nd7 {[%clk 0:00:41]} 33. c6 {[%clk 0:01:03]}  Ndf8 {[%clk 0:00:40]} 34. Bd2 {[%clk 0:00:57]}  Ng6 {[%clk 0:00:32]} 35. Qc4 {[%clk 0:00:54]}  Nhf8 {[%clk 0:00:25]} 36. Nb5 {[%clk 0:00:28]}  Rc7 {[%clk 0:00:10]} 37. Nxc7 {[%clk 0:00:25]}  Qxc7 {[%clk 0:00:11]} 38. Qb5 {[%clk 0:00:15]}  Ne7 {[%clk 0:00:07]} 39. Bxa5 {[%clk 0:00:15]}  Nd5 {[%clk 0:00:07]} 40. Bd2 {[%clk 0:00:15]}  Ra8 {[%clk 0:00:07]} 41. a4 {[%clk 0:00:15]}  Ng6 {[%clk 0:00:08]} 42. h5 {[%clk 0:00:12]}  Nge7 {[%clk 0:00:07]} 43. Rfc1 {[%clk 0:00:12]}  Kh7 {[%clk 0:00:08]} 44. Bb4 {[%clk 0:00:10]}  Nxb4 {[%clk 0:00:07]} 45. Rxb4 {[%clk 0:00:08]}  Nd5 {[%clk 0:00:08]} 46. Rb3 {[%clk 0:00:09]}  Ra5 {[%clk 0:00:08]} 47. Qd3 {[%clk 0:00:05]}  Qc8 {[%clk 0:00:08]} 48. c7 {[%clk 0:00:04]}  Rxa4 {[%clk 0:00:07]} 49. Ra3 {[%clk 0:00:04]}  Rb4 {[%clk 0:00:02]} 50. Rc2 {[%clk 0:00:04]}  Rb1 {[%clk 0:00:02]} 51. Ra7 {[%clk 0:00:02]}  b5 {[%clk 0:00:01]} 52. Qf3 {[%clk 0:00:01]}  Re1 {[%clk 0:00:02]} 53. Kf2 {[%clk 0:00:01]}  Re3 {[%clk 0:00:01]} 54. Qxe3 {[%clk 0:00:02]}  Nxe3 {[%clk 0:00:02]} 55. Kxe3 {[%clk 0:00:03]}  b4 {[%clk 0:00:03]} 56. Rc5 {[%clk 0:00:02]}  b3 {[%clk 0:00:03]} 57. Ra3 {[%clk 0:00:01]}  b2 {[%clk 0:00:03]} 58. Rb3 {[%clk 0:00:02]}  Qa8 {[%clk 0:00:03]} 59. Rxb2 {[%clk 0:00:02]}  Qe4+ {[%clk 0:00:04]} 60. Kf2 {[%clk 0:00:02]}  Qxd4+ {[%clk 0:00:04]} 61. Kf3 {[%clk 0:00:02]}  Qxc5 {[%clk 0:00:04]} 62. Rb8 {[%clk 0:00:02]}  Qxc7 {[%clk 0:00:04]} 63. Rf8 {[%clk 0:00:01]}  Qxe5 {[%clk 0:00:04]} 64. Rf7 {[%clk 0:00:01]}  Qe4+ {[%clk 0:00:04]} 65. Kf2 {[%clk 0:00:02]}  Qg4 {[%clk 0:00:05]} 66. Re7 {[%clk 0:00:02]}  Qd4+ {[%clk 0:00:03]} 67. Kf3 {[%clk 0:00:02]}  Qd5+ {[%clk 0:00:04]} 68. Kf2 {[%clk 0:00:00]}  Qc5+ {[%clk 0:00:04]} 0-1

[Event "December 5 Early 2023"]
[Site "https://www.chess.com"]
[Date "2023.12.05"]
[Round "5"]
[White "Danielyan, Vahe"]
[Black "Drygalov, Sergey"]
[Result "0-1"]
[Board "25"]
[TimeControl "180+1"]
[WhiteFideId "13304828"]
[BlackFideId "24171743"]
[WhiteElo "2684"]
[BlackElo "2947"]
[WhiteTeam "ARM"]
[BlackTeam "RUS"]
[WhiteClock "0:00:00"]
[BlackClock "0:00:25"]

1. e4 {[%clk 0:01:09]}  c5 {[%clk 0:02:59]} 2. Nf3 {[%clk 0:01:10]}  d6 {[%clk 0:02:59]} 3. Bb5+ {[%clk 0:01:10]}  Nd7 {[%clk 0:02:58]} 4. Ba4 {[%clk 0:01:11]}  Nf6 {[%clk 0:02:58]} 5. O-O {[%clk 0:01:11]}  e6 {[%clk 0:02:52]} 6. c4 {[%clk 0:01:11]}  Be7 {[%clk 0:02:45]} 7. Nc3 {[%clk 0:01:12]}  O-O {[%clk 0:02:44]} 8. d4 {[%clk 0:01:12]}  cxd4 {[%clk 0:02:41]} 9. Nxd4 {[%clk 0:01:13]}  a6 {[%clk 0:02:40]} 10. Qe2 {[%clk 0:01:13]}  Qc7 {[%clk 0:02:40]} 11. Rd1 {[%clk 0:01:13]}  Ne5 {[%clk 0:02:35]} 12. Bb3 {[%clk 0:01:11]}  b6 {[%clk 0:02:34]} 13. f4 {[%clk 0:01:11]}  Ned7 {[%clk 0:02:34]} 14. f5 {[%clk 0:01:06]}  Nc5 {[%clk 0:02:33]} 15. fxe6 {[%clk 0:01:05]}  fxe6 {[%clk 0:02:32]} 16. Bc2 {[%clk 0:01:06]}  b5 {[%clk 0:01:37]} 17. cxb5 {[%clk 0:00:56]}  e5 {[%clk 0:01:37]} 18. Nf3 {[%clk 0:00:48]}  axb5 {[%clk 0:01:35]} 19. Bg5 {[%clk 0:00:49]}  b4 {[%clk 0:01:33]} 20. Bxf6 {[%clk 0:00:49]}  bxc3 {[%clk 0:01:14]} 21. Bxe7 {[%clk 0:00:50]}  cxb2 {[%clk 0:01:14]} 22. Bxf8 {[%clk 0:00:30]}  bxa1=Q {[%clk 0:01:13]} 23. Rxa1 {[%clk 0:00:31]}  Kxf8 {[%clk 0:01:13]} 24. Ng5 {[%clk 0:00:31]}  Ne6 {[%clk 0:00:49]} 25. Rf1+ {[%clk 0:00:29]}  Nf4 {[%clk 0:00:49]} 26. g3 {[%clk 0:00:26]}  Qa7+ {[%clk 0:00:34]} 27. Qf2 {[%clk 0:00:25]}  Ba6 {[%clk 0:00:33]} 28. Qxa7 {[%clk 0:00:20]}  Rxa7 {[%clk 0:00:31]} 29. Rf2 {[%clk 0:00:21]}  h6 {[%clk 0:00:30]} 30. Ne6+ {[%clk 0:00:06]}  Ke7 {[%clk 0:00:29]} 31. Nxf4 {[%clk 0:00:05]}  exf4 {[%clk 0:00:30]} 32. gxf4 {[%clk 0:00:06]}  Bc4 {[%clk 0:00:30]} 33. a4 {[%clk 0:00:06]}  Rb7 {[%clk 0:00:30]} 34. Kg2 {[%clk 0:00:07]}  Rb2 {[%clk 0:00:29]} 35. Kg3 {[%clk 0:00:07]}  Ra2 {[%clk 0:00:29]} 36. h4 {[%clk 0:00:07]}  h5 {[%clk 0:00:28]} 37. e5 {[%clk 0:00:05]}  dxe5 {[%clk 0:00:26]} 38. fxe5 {[%clk 0:00:06]}  Bd5 {[%clk 0:00:26]} 39. Bg6 {[%clk 0:00:05]}  Ra3+ {[%clk 0:00:25]} 40. Kf4 {[%clk 0:00:05]}  Rxa4+ {[%clk 0:00:24]} 41. Kg5 {[%clk 0:00:06]}  Rg4+ {[%clk 0:00:24]} 42. Kxh5 {[%clk 0:00:06]}  Rg3 {[%clk 0:00:25]} 43. Bf5 {[%clk 0:00:00]}  Bf7+ {[%clk 0:00:25]} 0-1

[Event "December 5 Early 2023"]
[Site "https://www.chess.com"]
[Date "2023.12.05"]
[Round "5"]
[White "Grigoriants, Sergey"]
[Black "Vlassov, Nikolai"]
[Result "1-0"]
[Board "28"]
[TimeControl "180+1"]
[WhiteFideId "4130804"]
[BlackFideId "4103360"]
[WhiteElo "2931"]
[BlackElo "2662"]
[WhiteTeam "HUN"]
[BlackTeam "FID"]
[WhiteClock "0:00:08"]
[BlackClock "0:00:00"]

1. d4 {[%clk 0:02:56]}  Nf6 {[%clk 0:02:59]} 2. c4 {[%clk 0:02:51]}  Nc6 {[%clk 0:02:58]} 3. Nf3 {[%clk 0:02:50]}  e6 {[%clk 0:02:58]} 4. g3 {[%clk 0:02:49]}  Bb4+ {[%clk 0:02:58]} 5. Bd2 {[%clk 0:02:48]}  a5 {[%clk 0:02:57]} 6. Bg2 {[%clk 0:02:48]}  d6 {[%clk 0:02:55]} 7. O-O {[%clk 0:02:47]}  e5 {[%clk 0:02:55]} 8. Bg5 {[%clk 0:02:43]}  exd4 {[%clk 0:02:55]} 9. Nxd4 {[%clk 0:02:42]}  Nxd4 {[%clk 0:02:54]} 10. Qxd4 {[%clk 0:02:42]}  Bc5 {[%clk 0:02:46]} 11. Qh4 {[%clk 0:02:41]}  h6 {[%clk 0:02:45]} 12. Nc3 {[%clk 0:02:40]}  O-O {[%clk 0:01:56]} 13. Bxf6 {[%clk 0:02:36]}  Qxf6 {[%clk 0:01:56]} 14. Qxf6 {[%clk 0:02:36]}  gxf6 {[%clk 0:01:56]} 15. Nd5 {[%clk 0:02:33]}  c6 {[%clk 0:01:54]} 16. Nxf6+ {[%clk 0:02:33]}  Kg7 {[%clk 0:01:54]} 17. Ne4 {[%clk 0:02:32]}  Be6 {[%clk 0:01:51]} 18. Rac1 {[%clk 0:02:04]}  Rfd8 {[%clk 0:01:44]} 19. Rfd1 {[%clk 0:02:02]}  a4 {[%clk 0:01:29]} 20. a3 {[%clk 0:01:39]}  Bf5 {[%clk 0:01:18]} 21. Nxc5 {[%clk 0:01:08]}  dxc5 {[%clk 0:01:19]} 22. Kf1 {[%clk 0:01:01]}  Be6 {[%clk 0:01:18]} 23. Rxd8 {[%clk 0:00:50]}  Rxd8 {[%clk 0:01:18]} 24. Be4 {[%clk 0:00:50]}  Rd2 {[%clk 0:01:13]} 25. Rc2 {[%clk 0:00:50]}  Rd1+ {[%clk 0:01:03]} 26. Kg2 {[%clk 0:00:50]}  Kf6 {[%clk 0:00:57]} 27. f4 {[%clk 0:00:50]}  Ke7 {[%clk 0:00:39]} 28. Kf2 {[%clk 0:00:50]}  Kd6 {[%clk 0:00:34]} 29. Ke3 {[%clk 0:00:49]}  f5 {[%clk 0:00:31]} 30. Bd3 {[%clk 0:00:36]}  Rh1 {[%clk 0:00:30]} 31. h4 {[%clk 0:00:33]}  Rg1 {[%clk 0:00:26]} 32. Kf2 {[%clk 0:00:33]}  Rd1 {[%clk 0:00:26]} 33. Kf3 {[%clk 0:00:29]}  Rf1+ {[%clk 0:00:25]} 34. Ke3 {[%clk 0:00:24]}  Rg1 {[%clk 0:00:25]} 35. Rd2 {[%clk 0:00:17]}  Ke7 {[%clk 0:00:21]} 36. Kf2 {[%clk 0:00:17]}  Rc1 {[%clk 0:00:21]} 37. Kf3 {[%clk 0:00:15]}  Rf1+ {[%clk 0:00:17]} 38. Ke3 {[%clk 0:00:15]}  Rg1 {[%clk 0:00:17]} 39. Kf2 {[%clk 0:00:13]}  Rc1 {[%clk 0:00:18]} 40. Rc2 {[%clk 0:00:10]}  Rd1 {[%clk 0:00:17]} 41. Rc3 {[%clk 0:00:09]}  Rd2 {[%clk 0:00:09]} 42. Bc2 {[%clk 0:00:09]}  Kf6 {[%clk 0:00:03]} 43. Ke3 {[%clk 0:00:08]}  Rd4 {[%clk 0:00:03]} 44. Bxa4 {[%clk 0:00:08]}  Bxc4 {[%clk 0:00:00]} 45. Bc2 {[%clk 0:00:08]} 1-0